fUSD/lending_fUSD_20240426
["ID","MTS","AMOUNT","RATE_DAILY","PERIOD"]
[323585208,1714097442073,-500.0,0.00010958,2]
[323585209,1714097442083,-672.76,0.00010958,2]
[323585210,1714097442092,-500.91233464,0.00010958,2]
[323585211,1714097442102,-500.73022082,0.00010958,2]
[323585212,1714097442111,-503.35838656,0.00010958,2]
[323585213,1714097442121,-504.10914157,0.00010958,2]
[323585214,1714097442133,-500.0,0.00010958,2]
[323585215,1714097442143,-503.16882179,0.00010958,2]
[323585216,1714097442153,-500.0,0.00010958,2]
[323585217,1714097442162,-500.0,0.00010958,2]
[323585218,1714097442171,-500.0,0.00010958,2]
[323585219,1714097442180,-500.0,0.00010958,2]
[323585220,1714097442190,-500.0,0.00010958,2]
[323585221,1714097442199,-500.0,0.00010958,2]
[323585222,1714097442209,-500.0,0.00010958,2]
[323585223,1714097442218,-500.0,0.00010958,2]
[323585224,1714097442228,-500.0,0.00010958,2]
[323585226,1714097442238,-500.0,0.00010958,2]
[323585228,1714097442247,-500.4395312,0.00010958,2]
[323585229,1714097442256,-533.54249255,0.00010958,2]
[323585231,1714097442266,-500.0,0.00010958,2]
[323585233,1714097442275,-500.0,0.00010958,2]
[323585234,1714097442285,-517.87727083,0.00010958,2]
[323585235,1714097442294,-501.39568226,0.00010958,2]
[323585236,1714097442304,-500.0,0.00010958,2]
[323585237,1714097442313,-500.0,0.00010958,2]
[323585238,1714097442322,-500.0,0.00010958,2]
[323585239,1714097442332,-500.0,0.00010958,2]
[323585240,1714097442341,-500.0,0.00010958,2]
[323585241,1714097442351,-506.61,0.00010958,2]
[323585242,1714097442361,-717.5,0.00010958,2]
[323585243,1714097442371,-500.0,0.00010958,2]
[323585244,1714097442385,-502.7672396,0.00010958,2]
[323585245,1714097442395,-513.71606668,0.00010958,2]
[323585246,1714097442405,-500.0,0.00010958,2]
[323585247,1714097442414,-500.0,0.00010958,2]
[323585248,1714097442424,-500.0,0.00010958,2]
[323585249,1714097442434,-500.0,0.00010958,2]
[323585250,1714097442444,-500.0,0.00010958,2]
[323585251,1714097442453,-500.0,0.00010958,2]
[323585252,1714097442463,-500.0,0.00010958,2]
[323585253,1714097442473,-500.0,0.00010958,2]
[323585254,1714097442483,-502.91351635,0.00010958,2]
[323585255,1714097442492,-500.0,0.00010958,2]
[323585256,1714097442501,-500.0,0.00010958,2]
[323585257,1714097442511,-500.0,0.00010958,2]
[323585258,1714097442520,-500.0,0.00010958,2]
[323585259,1714097442529,-503.29044113,0.00010958,2]
[323585260,1714097442540,-500.0,0.00010958,2]
[323585261,1714097442550,-500.0,0.00010958,2]
[323585262,1714097442559,-500.0,0.00010958,2]
[323585263,1714097442569,-500.0,0.00010958,2]
[323585264,1714097442579,-500.0,0.00010958,2]
[323585265,1714097442588,-500.0,0.00010958,2]
[323585266,1714097442600,-500.0,0.00010958,2]
[323585267,1714097442610,-500.0,0.00010958,2]
[323585268,1714097442619,-368.24,0.00010958,2]
[323585269,1714097442630,-500.0,0.00010958,2]
[323585270,1714097442640,-500.0,0.00010958,2]
[323585271,1714097442649,-500.0,0.00010958,2]
[323585272,1714097442659,-504.32464138,0.00010958,2]
[323585273,1714097442668,-500.0,0.00010958,2]
[323585274,1714097442679,-500.0,0.00010958,2]
[323585275,1714097442690,-500.0,0.00010958,2]
[323585276,1714097442700,-500.0,0.00010958,2]
[323585277,1714097442709,-500.0,0.00010958,2]
[323585278,1714097442718,-500.0,0.00010958,2]
[323585279,1714097442728,-500.0,0.00010958,2]
[323585280,1714097442737,-500.0,0.00010958,2]
[323585281,1714097442747,-749.71,0.00010958,2]
[323585282,1714097442759,-500.0,0.00010958,2]
[323585283,1714097442769,-500.0,0.00010958,2]
[323585284,1714097442778,-500.0,0.00010958,2]
[323585285,1714097442788,-500.0,0.00010958,2]
[323585286,1714097442797,-500.0,0.00010958,2]
[323585287,1714097442807,-1694.29,0.00010958,2]
[323585288,1714097442817,-500.0,0.00010958,2]
[323585289,1714097442826,-500.0,0.00010958,2]
[323585290,1714097442835,-604.45,0.00010958,2]
[323585291,1714097442845,-501.38993402,0.00010958,2]
[323585292,1714097442854,-515.13710434,0.00010958,2]
[323585293,1714097442864,-500.44542967,0.00010958,2]
[323585294,1714097442873,-503.56710607,0.00010958,2]
[323585295,1714097442882,-500.0,0.00010958,2]
[323585296,1714097442892,-500.0,0.00010958,2]
[323585297,1714097442902,-500.0,0.00010958,2]
[323585298,1714097442911,-500.0,0.00010958,2]
[323585299,1714097442920,-537.40074454,0.00010958,2]
[323585300,1714097442929,-521.27,0.00010958,2]
[323585302,1714097442938,-499.99695168,0.00010958,2]
[323585303,1714097442949,-500.0,0.00010958,2]
[323585304,1714097442958,-500.0,0.00010958,2]
[323585305,1714097442968,-1005.35,0.00010958,2]
[323585306,1714097442977,-500.0,0.00010958,2]
[323585307,1714097442987,-500.0,0.00010958,2]
[323585309,1714097442997,-511.04671154,0.00010958,2]
[323585311,1714097443007,-576.62,0.00010958,2]
[323585313,1714097443016,-500.0,0.00010958,2]
[323585315,1714097443026,-500.0,0.00010958,2]
[323585316,1714097443036,-500.0,0.00010958,2]
[323585317,1714097443046,-888.62,0.00010958,2]
[323585318,1714097443055,-500.0,0.00010958,2]
[323585319,1714097443065,-500.0,0.00010958,2]
[323585320,1714097443074,-500.0,0.00010958,2]
[323585321,1714097443085,-502.55573653,0.00010958,2]
[323585322,1714097443095,-503.99564917,0.00010958,2]
[323585324,1714097443105,-500.0,0.00010958,2]
[323585325,1714097443114,-500.0,0.00010958,2]
[323585326,1714097443126,-605.54,0.00010958,2]
[323585327,1714097443135,-680.83,0.00010958,2]
[323585328,1714097443145,-500.0,0.00010958,2]
[323585329,1714097443154,-500.75055358,0.00010958,2]
[323585330,1714097443164,-500.0,0.00010958,2]
[323585331,1714097443174,-584.73359084,0.00010958,2]
[323585332,1714097443183,-505.40307843,0.00010958,2]
[323585333,1714097443193,-500.0,0.00010958,2]
[323585334,1714097443202,-849.55,0.00010958,2]
[323585335,1714097443212,-500.0,0.00010958,2]
[323585336,1714097443222,-500.0,0.00010958,2]
[323585337,1714097443231,-500.0,0.00010958,2]
[323585338,1714097443240,-500.0,0.00010958,2]
[323585339,1714097443250,-500.0,0.00010958,2]
[323585340,1714097443259,-500.0,0.00010958,2]
[323585341,1714097443268,-500.0,0.00010958,2]
[323585342,1714097443278,-500.0,0.00010958,2]
[323585343,1714097443287,-506.87442714,0.00010958,2]
[323585344,1714097443296,-577.42,0.00010958,2]
[323585345,1714097443306,-500.0,0.00010958,2]
[323585346,1714097443315,-500.0,0.00010958,2]
[323585347,1714097443324,-500.0,0.00010958,2]
[323585348,1714097443334,-500.0,0.00010958,2]
[323585349,1714097443343,-500.0,0.00010958,2]
[323585350,1714097443352,-180.92876413,0.00010958,2]
[323585351,1714097443361,-646.0,0.00010958,2]
[323585352,1714097443370,-505.33844422,0.00010958,2]
[323585353,1714097443385,-500.0,0.00010958,2]
[323585354,1714097443395,-500.0,0.00010958,2]
[323585355,1714097443404,-2464.94,0.00010958,2]
[323585356,1714097443415,-500.0,0.00010958,2]
[323585357,1714097443424,-500.0,0.00010958,2]
[323585358,1714097443433,-500.0,0.00010958,2]
[323585359,1714097443442,-500.0,0.00010958,2]
[323585360,1714097443451,-500.0,0.00010958,2]
[323585361,1714097443460,-500.0,0.00010958,2]
[323585362,1714097443470,-527.03110006,0.00010958,2]
[323585363,1714097443479,-177.39022925,0.00010958,2]
[323585364,1714097443488,-500.0,0.00010958,2]
[323585365,1714097443498,-500.0,0.00010958,2]
[323585366,1714097443507,-500.0,0.00010958,2]
[323585367,1714097443516,-500.0,0.00010958,2]
[323585368,1714097443526,-1424.97,0.00010958,2]
[323585369,1714097443535,-500.0,0.00010958,2]
[323585370,1714097443545,-501.62289732,0.00010958,2]
[323585371,1714097443554,-500.0,0.00010958,2]
[323585372,1714097443563,-503.9440763,0.00010958,2]
[323585373,1714097443572,-500.0,0.00010958,2]
[323585374,1714097443582,-500.0,0.00010958,2]
[323585375,1714097443591,-500.0,0.00010958,2]
[323585376,1714097443601,-500.0,0.00010958,2]
[323585377,1714097443610,-534.1,0.00010958,2]
[323585378,1714097443620,-500.0,0.00010958,2]
[323585379,1714097443631,-365.21821792,0.00010958,2]
[323585380,1714097443641,-500.0,0.00010958,2]
[323585381,1714097443650,-500.0,0.00010958,2]
[323585382,1714097443660,-7733.31,0.00010958,2]
[323585383,1714097443670,-500.0,0.00010958,2]
[323585384,1714097443680,-500.0,0.00010958,2]
[323585385,1714097443691,-500.0,0.00010958,2]
[323585386,1714097443700,-500.0,0.00010958,2]
[323585387,1714097443709,-500.0,0.00010958,2]
[323585388,1714097443719,-500.0,0.00010958,2]
[323585389,1714097443729,-3733.31,0.00010958,2]
[323585390,1714097443738,-500.0,0.00010958,2]
[323585391,1714097443747,-501.41738963,0.00010958,2]
[323585392,1714097443758,-501.97971317,0.00010958,2]
[323585393,1714097443768,-500.0,0.00010958,2]
[323585394,1714097443777,-504.58065835,0.00010958,2]
[323585395,1714097443786,-245.72,0.00010958,2]
[323585396,1714097443795,-500.0,0.00010958,2]
[323585397,1714097443805,-874.68,0.00010958,2]
[323585398,1714097443814,-500.67947193,0.00010958,2]
[323585399,1714097443823,-1033.4,0.00010958,2]
[323585400,1714097443833,-503.5741521,0.00010958,2]
[323585401,1714097443842,-594.0819442,0.00010958,2]
[323585402,1714097443851,-500.0,0.00010958,2]
[323585403,1714097443860,-500.0,0.00010958,2]
[323585404,1714097443869,-500.0,0.00010958,2]
[323585405,1714097443880,-500.0,0.00010958,2]
[323585406,1714097443890,-503.07628025,0.00010958,2]
[323585407,1714097443899,-508.46711328,0.00010958,2]
[323585408,1714097443909,-500.0,0.00010958,2]
[323585409,1714097443918,-2674.71,0.00010958,2]
[323585410,1714097443927,-500.0,0.00010958,2]
[323585411,1714097443936,-500.0,0.00010958,2]
[323585412,1714097443945,-500.0,0.00010958,2]
[323585413,1714097443954,-500.0,0.00010958,2]
[323585414,1714097443963,-500.0,0.00010958,2]
[323585415,1714097443972,-505.50689454,0.00010958,2]
[323585416,1714097443982,-500.0,0.00010958,2]
[323585417,1714097443991,-500.0,0.00010958,2]
[323585418,1714097444001,-500.0,0.00010958,2]
[323585419,1714097444010,-500.0,0.00010958,2]
[323585420,1714097444019,-566.05741373,0.00010958,2]
[323585421,1714097444028,-500.0,0.00010958,2]
[323585422,1714097444038,-500.0,0.00010958,2]
[323585423,1714097444047,-500.0,0.00010958,2]
[323585424,1714097444057,-500.0,0.00010958,2]
[323585425,1714097444067,-500.0,0.00010958,2]
[323585426,1714097444077,-500.0,0.00010958,2]
[323585427,1714097444086,-500.0,0.00010958,2]
[323585428,1714097444096,-500.0,0.00010958,2]
[323585429,1714097444108,-507.086403,0.00010958,2]
[323585430,1714097444118,-500.0,0.00010958,2]
[323585431,1714097444129,-500.0,0.00010958,2]
[323585432,1714097444139,-500.0,0.00010958,2]
[323585433,1714097444148,-500.0,0.00010958,2]
[323585434,1714097444158,-904.78,0.00010958,2]
[323585435,1714097444167,-500.0,0.00010958,2]
[323585436,1714097444176,-591.574005,0.00010958,2]
[323585437,1714097444185,-867.14,0.00010958,2]
[323585438,1714097444195,-1256.3,0.00010958,2]
[323585439,1714097444204,-500.0,0.00010958,2]
[323585440,1714097444213,-500.0,0.00010958,2]
[323585441,1714097444222,-500.0,0.00010958,2]
[323585442,1714097444231,-500.0,0.00010958,2]
[323585443,1714097444240,-500.0,0.00010958,2]
[323585444,1714097444250,-4702.46,0.00010958,2]
[323585445,1714097444259,-155.49863646,0.00010958,2]
[323585446,1714097444268,-500.0,0.00010958,2]
[323585447,1714097444277,-500.0,0.00010958,2]
[323585448,1714097444286,-506.6598663,0.00010958,2]
[323585449,1714097444295,-500.0,0.00010958,2]
[323585450,1714097444304,-765.45,0.00010958,2]
[323585451,1714097444384,-1236.49,0.00010958,2]
[323585452,1714097444394,-500.0,0.00010958,2]
[323585453,1714097444403,-500.0,0.00010958,2]
[323585454,1714097444413,-502.93281707,0.00010958,2]
[323585455,1714097444422,-540.19386954,0.00010958,2]
[323585456,1714097444431,-5632.57,0.00010958,2]
[323585457,1714097444440,-500.0,0.00010958,2]
[323585458,1714097444450,-804.99,0.00010958,2]
[323585459,1714097444458,-500.0,0.00010958,2]
[323585460,1714097444469,-500.0,0.00010958,2]
[323585461,1714097444479,-506.35338869,0.00010958,2]
[323585462,1714097444488,-501.8753835,0.00010958,2]
[323585463,1714097444497,-504.7891753,0.00010958,2]
[323585464,1714097444506,-500.0,0.00010958,2]
[323585465,1714097444515,-1123.21,0.00010958,2]
[323585466,1714097444525,-500.0,0.00010958,2]
[323585467,1714097444534,-500.0,0.00010958,2]
[323585468,1714097444543,-500.0,0.00010958,2]
[323585469,1714097444551,-500.0,0.00010958,2]
[323585470,1714097444560,-554.81,0.00010958,2]
[323585471,1714097444569,-500.0,0.00010958,2]
[323585472,1714097444578,-501.63355826,0.00010958,2]
[323585473,1714097444587,-536.02582574,0.00010958,2]
[323585474,1714097444596,-500.0,0.00010958,2]
[323585475,1714097444605,-500.0,0.00010958,2]
[323585476,1714097444613,-500.0,0.00010958,2]
[323585477,1714097444622,-500.0,0.00010958,2]
[323585478,1714097444632,-500.0,0.00010958,2]
[323585479,1714097444641,-480.0,0.00010958,2]
[323585480,1714097444650,-500.0,0.00010958,2]
[323585481,1714097444661,-500.0,0.00010958,2]
[323585482,1714097444670,-506.3014546,0.00010958,2]
[323585483,1714097444680,-890.88,0.00010958,2]
[323585484,1714097444691,-500.0,0.00010958,2]
[323585485,1714097444701,-1122.46,0.00010958,2]
[323585486,1714097444711,-500.0,0.00010958,2]
[323585487,1714097444720,-500.0,0.00010958,2]
[323585488,1714097444730,-500.0,0.00010958,2]
[323585489,1714097444739,-500.0,0.00010958,2]
[323585490,1714097444748,-641.54,0.00010958,2]
[323585491,1714097444759,-500.73,0.00010958,2]
[323585492,1714097444768,-500.0,0.00010958,2]
[323585493,1714097444778,-500.0,0.00010958,2]
[323585494,1714097444788,-500.0,0.00010958,2]
[323585495,1714097444797,-1076.51,0.00010958,2]
[323585496,1714097444807,-500.0,0.00010958,2]
[323585497,1714097444817,-500.0,0.00010958,2]
[323585498,1714097444826,-500.0,0.00010958,2]
[323585499,1714097444835,-554.56,0.00010958,2]
[323585500,1714097444844,-500.0,0.00010958,2]
[323585501,1714097444853,-500.0,0.00010958,2]
[323585502,1714097444862,-501.45415197,0.00010958,2]
[323585503,1714097444871,-800.54,0.00010958,2]
[323585504,1714097444881,-500.0,0.00010958,2]
[323585505,1714097444890,-500.0,0.00010958,2]
[323585506,1714097444899,-1255.02,0.00010958,2]
[323585507,1714097444909,-500.0,0.00010958,2]
[323585508,1714097444918,-602.89,0.00010958,2]
[323585509,1714097444928,-968.15,0.00010958,2]
[323585510,1714097444936,-519.99,0.00010958,2]
[323585511,1714097444945,-500.0,0.00010958,2]
[323585512,1714097444954,-500.0,0.00010958,2]
[323585513,1714097444963,-506.43697231,0.00010958,2]
[323585514,1714097444972,-307.77378864,0.00010958,2]
[323585515,1714097444981,-500.0,0.00010958,2]
[323585516,1714097444990,-503.09573577,0.00010958,2]
[323585517,1714097445000,-501.63494283,0.00010958,2]
[323585518,1714097445010,-500.0,0.00010958,2]
[323585519,1714097445020,-500.0,0.00010958,2]
[323585520,1714097445030,-500.0,0.00010958,2]
[323585521,1714097445040,-500.0,0.00010958,2]
[323585522,1714097445050,-500.0,0.00010958,2]
[323585523,1714097445059,-500.0,0.00010958,2]
[323585524,1714097445067,-502.03476111,0.00010958,2]
[323585525,1714097445076,-501.8932579,0.00010958,2]
[323585526,1714097445085,-500.0,0.00010958,2]
[323585527,1714097445094,-543.75668948,0.00010958,2]
[323585528,1714097445103,-503.46818284,0.00010958,2]
[323585529,1714097445112,-500.0,0.00010958,2]
[323585530,1714097445121,-641.07,0.00010958,2]
[323585531,1714097445132,-500.71305052,0.00010958,2]
[323585532,1714097445142,-500.0,0.00010958,2]
[323585533,1714097445150,-500.0,0.00010958,2]
[323585534,1714097445160,-500.0,0.00010958,2]
[323585535,1714097445170,-500.0,0.00010958,2]
[323585537,1714097445179,-11388.84,0.00010958,2]
[323585538,1714097445189,-500.0,0.00010958,2]
[323585539,1714097445198,-500.0,0.00010958,2]
[323585540,1714097445207,-530.86,0.00010958,2]
[323585541,1714097445216,-501.1761874,0.00010958,2]
[323585542,1714097445225,-500.0,0.00010958,2]
[323585543,1714097445234,-500.0,0.00010958,2]
[323585544,1714097445244,-3939.86,0.00010958,2]
[323585545,1714097445253,-500.0,0.00010958,2]
[323585546,1714097445262,-500.0,0.00010958,2]
[323585547,1714097445271,-330.18364617,0.00010958,2]
[323585548,1714097445281,-3012.08,0.00010958,2]
[323585549,1714097445290,-500.0,0.00010958,2]
[323585550,1714097445299,-500.0,0.00010958,2]
[323585551,1714097445309,-500.0,0.00010958,2]
[323585552,1714097445318,-1947.45,0.00010958,2]
[323585553,1714097445327,-500.0,0.00010958,2]
[323585554,1714097445337,-541.08016026,0.00010958,2]
[323585555,1714097445346,-500.0,0.00010958,2]
[323585556,1714097445355,-500.0,0.00010958,2]
[323585557,1714097445363,-500.0,0.00010958,2]
[323585558,1714097445372,-500.0,0.00010958,2]
[323585559,1714097445384,-513.36145832,0.00010958,2]
[323585560,1714097445393,-500.0,0.00010958,2]
[323585561,1714097445402,-3849.55,0.00010958,2]
[323585562,1714097445411,-500.0,0.00010958,2]
[323585563,1714097445421,-500.0,0.00010958,2]
[323585564,1714097445430,-500.0,0.00010958,2]
[323585565,1714097445439,-500.0,0.00010958,2]
[323585566,1714097445448,-502.4159112,0.00010958,2]
[323585567,1714097445488,-749.89,0.00010958,2]
[323585568,1714097445498,-500.0,0.00010958,2]
[323585569,1714097445508,-851.54,0.00010958,2]
[323585570,1714097445517,-1554.02,0.00010958,2]
[323585571,1714097445527,-500.0,0.00010958,2]
[323585572,1714097445537,-500.0,0.00010958,2]
[323585573,1714097445547,-497.83299021,0.00010958,2]
[323585574,1714097445556,-500.0,0.00010958,2]
[323585575,1714097445565,-500.0,0.00010958,2]
[323585576,1714097445575,-500.0,0.00010958,2]
[323585577,1714097445584,-500.16843605,0.00010958,2]
[323585578,1714097445593,-500.0,0.00010958,2]
[323585579,1714097445602,-728.67,0.00010958,2]
[323585580,1714097445612,-503.92140658,0.00010958,2]
[323585581,1714097445622,-500.0,0.00010958,2]
[323585582,1714097445634,-500.0,0.00010958,2]
[323585583,1714097445643,-500.0,0.00010958,2]
[323585584,1714097445652,-500.0,0.00010958,2]
[323585585,1714097445661,-500.0,0.00010958,2]
[323585586,1714097445670,-500.0,0.00010958,2]
[323585587,1714097445680,-500.0,0.00010958,2]
[323585588,1714097445690,-510.76,0.00010958,2]
[323585589,1714097445699,-500.0,0.00010958,2]
[323585590,1714097445708,-504.73282868,0.00010958,2]
[323585591,1714097445717,-500.0,0.00010958,2]
[323585592,1714097445728,-504.37049518,0.00010958,2]
[323585593,1714097445737,-501.83614164,0.00010958,2]
[323585594,1714097445746,-249.7320373,0.00010958,2]
[323585595,1714097445755,-502.91561016,0.00010958,2]
[323585596,1714097445766,-500.0,0.00010958,2]
[323585597,1714097445775,-500.0,0.00010958,2]
[323585598,1714097445785,-500.0,0.00010958,2]
[323585599,1714097445794,-500.0,0.00010958,2]
[323585600,1714097445803,-500.0,0.00010958,2]
[323585601,1714097445812,-500.0,0.00010958,2]
[323585602,1714097445821,-500.0,0.00010958,2]
[323585603,1714097445830,-500.0,0.00010958,2]
[323585604,1714097445839,-500.0,0.00010958,2]
[323585605,1714097445848,-500.0,0.00010958,2]
[323585606,1714097445857,-500.0,0.00010958,2]
[323585607,1714097445866,-503.22719926,0.00010958,2]
[323585608,1714097445876,-3062.0,0.00010958,2]
[323585609,1714097445890,-500.0,0.00010958,2]
[323585610,1714097445898,-909.5,0.00010958,2]
[323585611,1714097445907,-523.73293447,0.00010958,2]
[323585612,1714097445916,-502.36339291,0.00010958,2]
[323585613,1714097445925,-1470.35,0.00010958,2]
[323585614,1714097445933,-500.0,0.00010958,2]
[323585615,1714097445942,-500.0,0.00010958,2]
[323585616,1714097445951,-792.3,0.00010958,2]
[323585617,1714097445960,-500.0,0.00010958,2]
[323585618,1714097445969,-500.0,0.00010958,2]
[323585619,1714097445979,-500.0,0.00010958,2]
[323585620,1714097445988,-503.90497579,0.00010958,2]
[323585621,1714097445997,-500.0,0.00010958,2]
[323585622,1714097446006,-503.56167469,0.00010958,2]
[323585623,1714097446017,-500.0,0.00010958,2]
[323585624,1714097446027,-1188.8,0.00010958,2]
[323585625,1714097446036,-500.0,0.00010958,2]
[323585626,1714097446045,-921.85,0.00010958,2]
[323585627,1714097446055,-549.28,0.00010958,2]
[323585628,1714097446065,-858.61,0.00010958,2]
[323585629,1714097446076,-500.0,0.00010958,2]
[323585630,1714097446086,-500.0,0.00010958,2]
[323585631,1714097446095,-552.28605714,0.00010958,2]
[323585632,1714097446104,-2122.64,0.00010958,2]
[323585633,1714097446114,-930.86,0.00010958,2]
[323585634,1714097446123,-1451.82,0.00010958,2]
[323585635,1714097446132,-1072.02,0.00010958,2]
[323585636,1714097446143,-500.0,0.00010958,2]
[323585637,1714097446152,-500.0,0.00010958,2]
[323585638,1714097446161,-536.87,0.00010958,2]
[323585639,1714097446172,-1254.01,0.00010958,2]
[323585640,1714097446181,-500.0,0.00010958,2]
[323585641,1714097446190,-624.93,0.00010958,2]
[323585642,1714097446200,-500.0,0.00010958,2]
[323585643,1714097446209,-503.69709925,0.00010958,2]
[323585644,1714097446218,-500.0,0.00010958,2]
[323585645,1714097446227,-500.0,0.00010958,2]
[323585646,1714097446237,-957.97,0.00010958,2]
[323585647,1714097446246,-333.3579789,0.00010958,2]
[323585648,1714097446255,-503.17674906,0.00010958,2]
[323585649,1714097446264,-500.0,0.00010958,2]
[323585650,1714097446274,-500.0,0.00010958,2]
[323585651,1714097446283,-1244.11,0.00010958,2]
[323585652,1714097446292,-500.57,0.00010958,2]
[323585653,1714097446301,-3654.52,0.00010958,2]
[323585654,1714097446310,-500.0,0.00010958,2]
[323585655,1714097446319,-500.0,0.00010958,2]
[323585656,1714097446328,-500.0,0.00010958,2]
[323585657,1714097446337,-1167.9,0.00010958,2]
[323585658,1714097446346,-231.39194801,0.00010958,2]
[323585659,1714097446355,-500.0,0.00010958,2]
[323585660,1714097446364,-500.0,0.00010958,2]
[323585661,1714097446373,-1045.55,0.00010958,2]
[323585662,1714097446385,-500.0,0.00010958,2]
[323585663,1714097446395,-500.0,0.00010958,2]
[323585664,1714097446404,-500.0,0.00010958,2]
[323585665,1714097446413,-500.0,0.00010958,2]
[323585666,1714097446422,-500.0,0.00010958,2]
[323585667,1714097446431,-500.0,0.00010958,2]
[323585668,1714097446442,-845.91,0.00010958,2]
[323585669,1714097446451,-502.76772568,0.00010958,2]
[323585670,1714097446460,-554.43,0.00010958,2]
[323585671,1714097446470,-2655.55,0.00010958,2]
[323585672,1714097446479,-500.0,0.00010958,2]
[323585673,1714097446488,-491.63699797,0.00010958,2]
[323585674,1714097446497,-500.0,0.00010958,2]
[323585675,1714097446506,-500.0,0.00010958,2]
[323585676,1714097446515,-500.0,0.00010958,2]
[323585677,1714097446524,-501.99558182,0.00010958,2]
[323585678,1714097446533,-500.0,0.00010958,2]
[323585679,1714097446542,-501.48201427,0.00010958,2]
[323585680,1714097446552,-1413.14,0.00010958,2]
[323585681,1714097446560,-500.0,0.00010958,2]
[323585682,1714097446569,-501.93914007,0.00010958,2]
[323585683,1714097446578,-633.9,0.00010958,2]
[323585684,1714097446588,-332.51975964,0.00010958,2]
[323585685,1714097446597,-503.3414406,0.00010958,2]
[323585686,1714097446607,-500.0,0.00010958,2]
[323585687,1714097446618,-503.6046251,0.00010958,2]
[323585688,1714097446627,-500.0,0.00010958,2]
[323585689,1714097446638,-500.0,0.00010958,2]
[323585690,1714097446646,-500.0,0.00010958,2]
[323585691,1714097446655,-501.48460232,0.00010958,2]
[323585692,1714097446664,-500.0,0.00010958,2]
[323585693,1714097446673,-500.0,0.00010958,2]
[323585694,1714097446684,-500.0,0.00010958,2]
[323585695,1714097446694,-500.0,0.00010958,2]
[323585696,1714097446705,-1271.02,0.00010958,2]
[323585697,1714097446714,-500.0,0.00010958,2]
[323585698,1714097446726,-500.0,0.00010958,2]
[323585699,1714097446734,-1489.29,0.00010958,2]
[323585700,1714097446744,-500.0,0.00010958,2]
[323585701,1714097446753,-500.0,0.00010958,2]
[323585702,1714097446763,-776.85,0.00010958,2]
[323585703,1714097446774,-562.95,0.00010958,2]
[323585704,1714097446783,-508.06288008,0.00010958,2]
[323585705,1714097446793,-500.0,0.00010958,2]
[323585706,1714097446803,-503.60179764,0.00010958,2]
[323585707,1714097446814,-500.0,0.00010958,2]
[323585708,1714097446825,-660.15,0.00010958,2]
[323585709,1714097446835,-500.0,0.00010958,2]
[323585710,1714097446844,-872.1,0.00010958,2]
[323585711,1714097446854,-500.92768852,0.00010958,2]
[323585712,1714097446862,-502.64220817,0.00010958,2]
[323585713,1714097446871,-500.0,0.00010958,2]
[323585714,1714097446882,-510.07667091,0.00010958,2]
[323585715,1714097446891,-501.55407763,0.00010958,2]
[323585716,1714097446900,-502.17999434,0.00010958,2]
[323585717,1714097446911,-501.4122045,0.00010958,2]
[323585718,1714097446921,-500.0,0.00010958,2]